bitfinex/quotes_SOLUSD_20220207
["timestamp","ask_amount","ask_price","bid_price","bid_amount"]
[1644205504894,47.31869814,118.55,118.46,98.3775411]
[1644205505097,509.29433565,118.56,118.48,12.6566]
[1644205505296,12.6569,118.59,118.48,12.9066]
[1644205505495,10.17,118.6,118.48,70.0766]
[1644205505695,10.17,118.6,118.48,18.9066]
[1644205505895,10.17,118.6,118.49,51.17]
[1644205506094,47.16971315,118.59,118.49,50.677251]
[1644205506297,47.16971315,118.59,118.49,50.927251]
[1644205506496,47.16971315,118.59,118.51,12.6542]
[1644205506698,59.82561315,118.59,118.51,50.31216974]
[1644205506909,42.1885,118.62,118.51,50.56216974]
[1644205507104,10.17,118.62,118.51,50.56216974]
[1644205507303,2.16357196,118.65,118.51,52.7257417]
[1644205507504,12.33357196,118.65,118.51,52.7257417]
[1644205507706,12.33357196,118.65,118.51,65.3799417]
[1644205507904,19.88991981,118.62,118.51,63.21636974]
[1644205508103,30.05991981,118.62,118.51,18.6542]
[1644205508305,2.16357196,118.61,118.51,18.6542]
[1644205508504,12.33357196,118.61,118.51,6.0]
[1644205508708,12.58357196,118.61,118.48,29.8845]
[1644205508905,12.6552,118.6,118.49,12.6559]
[1644205509105,12.6552,118.6,118.48,29.8845]
[1644205509106,37.23015223,118.59,118.48,23.8845]
[1644205509306,49.81372419,118.59,118.46,22.8395]
[1644205509505,4.218,118.58,118.41,10.17]
[1644205509707,10.17,118.57,118.4,33.7084]
[1644205509909,12.33357196,118.57,118.4,33.7084]
[1644205510110,18.33357196,118.57,118.43,12.6625]
[1644205510311,19.88991981,118.56,118.43,22.8325]
[1644205510525,19.88991981,118.56,118.45,42.1911]
[1644205510726,25.88991981,118.56,118.46,36.94154523]
[1644205510927,25.88991981,118.56,118.46,37.19154523]
[1644205511126,38.54901981,118.56,118.47,12.6574]
[1644205511436,38.54901981,118.56,118.46,6.0]
[1644205511632,10.17,118.55,118.42,4.219]
[1644205511832,10.42,118.55,118.42,10.219]
[1644205512027,16.42,118.55,118.42,4.219]
[1644205512228,10.42,118.55,118.42,10.219]
[1644205512429,35.99035478,118.54,118.43,37.96436442]
[1644205512628,35.99035478,118.54,118.43,43.96436442]
[1644205512830,36.24035478,118.54,118.43,44.21436442]
[1644205513127,21.12971726,118.52,118.43,56.62626442]
[1644205513927,21.37971726,118.52,118.43,50.62626442]
[1644205514330,34.04281726,118.52,118.43,37.96436442]
[1644205514630,44.21281726,118.52,118.42,4.219]
[1644205514829,44.21281726,118.52,118.41,36.6029]
[1644205514830,44.21281726,118.52,118.41,23.9389]
[1644205515030,50.21281726,118.52,118.41,23.9389]
[1644205515232,52.37638922,118.52,118.4,23.5384]
[1644205515433,52.37638922,118.52,118.4,70.21292873]
[1644205515631,50.21281726,118.52,118.4,46.67452873]
[1644205515832,50.21281726,118.52,118.4,46.92452873]
[1644205516434,50.21281726,118.52,118.4,46.67452873]
[1644205516733,4.22,118.51,118.37,14.83247196]
[1644205516934,12.6709,118.47,118.37,2.16357196]
[1644205517134,10.17,118.46,118.35,4.22]
[1644205517338,10.42,118.46,118.35,4.22]
[1644205517634,35.99035478,118.45,118.36,45.13847638]
[1644205517939,12.6719,118.44,118.36,45.13847638]
[1644205518137,21.12971726,118.43,118.36,45.13847638]
[1644205518733,10.42,118.45,118.36,45.13847638]
[1644205518934,23.0907,118.45,118.36,57.80897638]
[1644205519533,23.0907,118.45,118.33,4.222]
[1644205519737,23.0907,118.45,118.32,23.4895]
[1644205520034,31.25427196,118.45,118.31,23.3829]
[1644205520234,35.47727196,118.45,118.31,23.3829]
[1644205520435,42.39220407,118.44,118.32,44.02787435]
[1644205520636,12.6753,118.41,118.32,44.02787435]
[1644205520833,14.72786797,118.4,118.32,44.02787435]
[1644205521034,14.72786797,118.4,118.31,23.3829]
[1644205521234,14.97786797,118.4,118.31,23.3829]
[1644205521433,14.97786797,118.4,118.31,29.3829]
[1644205521633,14.72786797,118.4,118.31,29.6329]
[1644205521834,10.17,118.41,118.31,31.79647196]
[1644205522236,10.42,118.41,118.31,29.3829]
[1644205522837,45.62154598,118.4,118.32,46.4758558]
[1644205523038,58.29744598,118.4,118.32,46.4758558]
[1644205523239,58.54744598,118.4,118.32,52.4758558]
[1644205523939,10.17,118.39,118.29,23.0579]
[1644205524140,12.6802,118.36,118.28,112.68324632]
[1644205524340,12.6802,118.36,118.28,0.18324632]
[1644205524341,23.1002,118.36,118.28,0.18324632]
[1644205524739,22.8502,118.36,118.28,0.18324632]
[1644205524940,39.45790054,118.35,118.28,0.18324632]
[1644205525140,52.13910054,118.35,118.28,0.18324632]
[1644205525341,62.55910054,118.35,118.28,0.18324632]
[1644205526741,12.691,118.31,118.22,0.11546008]
[1644205526942,10.17,118.3,118.22,0.11546008]
[1644205527142,10.17,118.29,118.22,0.11546008]
[1644205527343,10.42,118.29,118.22,0.11546008]
[1644205527544,16.42,118.29,118.22,0.11546008]
[1644205527843,18.58357196,118.29,118.22,0.11546008]
[1644205528254,0.32378327,118.27,118.22,0.11546008]
[1644205528443,10.17,118.26,118.22,0.11546008]
[1644205529044,150.5141,118.34,118.22,0.61862552]
[1644205529270,10.17,118.29,118.23,45.38924418]
[1644205529844,10.17,118.29,118.22,0.61862552]
[1644205530846,61.56294612,118.29,118.22,39.9613831]
[1644205531746,22.8576,118.29,118.22,39.9613831]
[1644205531946,10.17,118.29,118.22,40.2113831]
[1644205532146,42.2871,118.34,118.22,46.2113831]
[1644205532347,10.17,118.33,118.22,46.2113831]
[1644205532748,0.11569345,118.27,118.22,58.8956831]
[1644205533648,0.11569345,118.27,118.22,58.6456831]
[1644205534854,0.11569345,118.27,118.22,58.8956831]
[1644205535053,0.11569345,118.27,118.22,58.6456831]
[1644205535253,0.11569345,118.27,118.22,39.9613831]
[1644205535455,0.11569345,118.27,118.22,45.9613831]
[1644205535653,0.11569345,118.27,118.22,39.9613831]
[1644205536254,0.11569345,118.27,118.22,39.69230326]
[1644205536454,0.11569345,118.27,118.22,0.34954568]
[1644205537458,12.78823716,118.27,118.22,0.34954568]
[1644205537658,12.78823716,118.27,118.17,37.91779417]
[1644205537659,12.78823716,118.27,118.17,38.22918017]
[1644205537859,13.03823716,118.27,118.17,38.22918017]
[1644205538059,25.72833716,118.27,118.17,50.91868017]
[1644205538459,12.80579345,118.27,118.17,50.91868017]
[1644205538662,13.05579345,118.27,118.17,50.91868017]
[1644205538860,13.05579345,118.27,118.17,56.91868017]
[1644205539462,34.95894819,118.26,118.17,44.22918017]
[1644205539661,12.692,118.25,118.17,44.22918017]
[1644205539861,12.942,118.25,118.17,44.22918017]
[1644205540064,0.11569345,118.27,118.17,44.22918017]
[1644205540263,0.25,118.26,118.17,44.22918017]
[1644205540962,0.25,118.26,118.17,56.91908017]
[1644205541361,13.05629345,118.27,118.17,56.91908017]
[1644205542162,13.05629345,118.27,118.17,57.16908017]
[1644205542962,8.59889725,118.26,118.17,57.16908017]
[1644205543165,0.36569345,118.27,118.17,56.91908017]
[1644205543363,0.11569345,118.27,118.17,57.16908017]
[1644205543865,0.11569345,118.27,118.17,67.33908017]
[1644205544162,0.11569345,118.27,118.21,51.17]
[1644205544381,0.11569345,118.27,118.22,91.99649611]
[1644205544580,0.11569345,118.27,118.22,97.99649611]
[1644205544881,0.11569345,118.27,118.22,98.24649611]
[1644205545283,0.11569345,118.27,118.22,110.92959611]
[1644205546887,0.11569345,118.27,118.24,12.6794]
[1644205547084,0.11569345,118.27,118.24,18.6794]
[1644205547884,0.11569345,118.27,118.24,6.0]
[1644205548086,0.11569345,118.27,118.23,6.46184032]
[1644205548286,0.11569345,118.27,118.23,0.46184032]
[1644205548485,0.11569345,118.27,118.23,6.46184032]
[1644205548887,0.11569345,118.27,118.24,48.533778]
[1644205549088,0.11569345,118.27,118.24,54.533778]
[1644205550688,0.10677106,118.26,118.24,54.783778]
[1644205551290,0.10677106,118.26,118.24,54.533778]
[1644205551488,0.10677106,118.26,118.24,54.783778]
[1644205551690,0.10677106,118.26,118.24,67.217078]
[1644205552091,0.10601643,118.25,118.24,67.217078]
[1644205552291,0.10601643,118.25,118.24,18.6833]
[1644205552489,0.10601643,118.25,118.24,6.0]
[1644205552689,0.10601643,118.25,118.23,0.46184032]
[1644205553291,0.10601643,118.25,118.23,42.08738513]
[1644205553789,0.10677106,118.26,118.23,48.08738513]
[1644205553990,0.10677106,118.26,118.23,101.42095709]
[1644205554591,0.10677106,118.26,118.23,111.94208513]
[1644205554791,0.10677106,118.26,118.23,112.19208513]
[1644205554991,0.10677106,118.26,118.23,114.10565709]
[1644205555191,0.10677106,118.26,118.23,118.33365709]
[1644205555391,0.11569345,118.27,118.24,59.0]
[1644205555591,0.11569345,118.27,118.25,51.17]
[1644205555791,0.11569345,118.27,118.26,63.8476]
[1644205556192,0.11569345,118.27,118.26,70.0976]
[1644205556393,0.00569345,118.27,118.26,106.96676821]
[1644205556592,557.12011295,118.38,118.28,51.17]
[1644205556992,557.12011295,118.38,118.31,12.6749]
[1644205557193,10.17,118.42,118.31,18.6749]
[1644205557492,46.3722618,118.41,118.31,6.0]
[1644205557693,52.6222618,118.41,118.31,6.0]
[1644205557893,52.6222618,118.41,118.29,40.80917791]
[1644205558093,46.6222618,118.41,118.29,40.80917791]
[1644205558294,46.3722618,118.41,118.29,40.80917791]
[1644205558495,20.63562992,118.39,118.29,53.48767791]
[1644205558694,20.63562992,118.39,118.29,53.73767791]
[1644205559694,20.88562992,118.39,118.29,53.73767791]
[1644205560495,33.56442992,118.39,118.29,53.73767791]
[1644205561297,33.56442992,118.39,118.29,53.48767791]
[1644205561698,20.88562992,118.39,118.29,53.48767791]
[1644205562599,20.88562992,118.39,118.29,104.65767791]
[1644205562799,0.25,118.39,118.29,107.07124987]
[1644205563100,24.2104,118.44,118.29,117.24124987]
[1644205563300,533.12508379,118.45,118.34,12.6705]
[1644205563600,533.12508379,118.45,118.35,93.3996]
[1644205563799,568.81649001,118.45,118.36,92.26568254]
[1644205564000,533.12508379,118.45,118.36,92.26568254]
[1644205564300,10.17,118.49,118.36,100.6792545]
[1644205564899,10.17,118.49,118.39,51.17]
[1644205565103,10.17,118.49,118.4,37.71018217]
[1644205565301,10.17,118.49,118.4,37.96018217]
[1644205565499,10.17,118.49,118.4,43.96018217]
[1644205565699,12.6648,118.52,118.4,43.96018217]
[1644205566100,34.46680855,118.51,118.4,43.96018217]
[1644205567103,34.46680855,118.51,118.42,55.80102302]
[1644205567302,34.46680855,118.51,118.42,56.05102302]
[1644205567501,34.46680855,118.51,118.42,62.05102302]
[1644205567701,34.71680855,118.51,118.42,62.05102302]
[1644205567903,12.6648,118.52,118.42,113.22102302]
[1644205568203,12.6627,118.54,118.42,113.22102302]
[1644205568803,38.29214696,118.53,118.42,113.22102302]
[1644205569402,50.95504696,118.53,118.42,113.22102302]
[1644205569609,51.20504696,118.53,118.42,113.22102302]
[1644205569802,51.20504696,118.53,118.42,62.05102302]
[1644205570002,61.37504696,118.53,118.42,62.05102302]
[1644205570204,61.37504696,118.53,118.42,61.80102302]
[1644205571604,61.37504696,118.53,118.42,62.05102302]
[1644205572404,48.71214696,118.53,118.42,62.05102302]
[1644205573004,48.46214696,118.53,118.42,62.05102302]
[1644205573404,10.17,118.53,118.42,113.22102302]
[1644205573604,12.6602,118.56,118.42,115.38459498]
[1644205573805,47.6075,118.57,118.43,4.219]
[1644205574005,17.0599,118.6,118.43,4.219]
[1644205574006,4.219,118.6,118.47,63.8279]
[1644205574205,10.17,118.6,118.47,70.0779]
[1644205574404,37.24639191,118.59,118.48,104.00278364]
[1644205574605,37.24639191,118.59,118.48,112.1663556]
[1644205574807,37.24639191,118.59,118.48,108.1983556]
[1644205575905,37.24639191,118.59,118.52,48.24001921]
[1644205576505,10.17,118.62,118.52,48.49001921]
[1644205577206,10.17,118.62,118.53,12.6533]
[1644205577607,10.17,118.62,118.54,47.39407137]
[1644205577805,10.17,118.62,118.54,47.64407137]
[1644205578006,20.38006461,118.61,118.54,47.64407137]
[1644205578606,20.38006461,118.61,118.53,6.0]
[1644205578807,20.63006461,118.61,118.5,54.2463]
[1644205579006,20.63006461,118.61,118.52,6.0]
[1644205579208,20.63006461,118.61,118.5,54.2463]
[1644205579608,33.28456461,118.61,118.51,12.6545]
[1644205579807,33.28456461,118.61,118.47,4.217]
[1644205580012,51.61813657,118.61,118.46,2.16357196]
[1644205580208,15.36177796,118.6,118.45,53.6141]
[1644205580408,10.17,118.59,118.45,53.6141]
[1644205580809,36.45782711,118.58,118.46,46.9569224]
[1644205581008,20.38006461,118.56,118.46,46.9569224]
[1644205581208,20.38006461,118.56,118.46,52.9569224]
[1644205581209,20.63006461,118.56,118.46,52.9569224]
[1644205581709,20.63006461,118.56,118.46,6.0]
[1644205581909,24.99497196,118.55,118.43,12.6632]
[1644205582108,30.99497196,118.55,118.43,12.6632]
[1644205582310,2.16357196,118.54,118.43,12.6632]
[1644205582511,12.33357196,118.54,118.43,12.6632]
[1644205582709,36.45782711,118.53,118.43,12.6632]
[1644205582909,10.17,118.52,118.42,47.77310118]
[1644205583110,20.38006461,118.51,118.42,53.77310118]
[1644205583312,20.63006461,118.51,118.42,54.02310118]
[1644205583911,33.29486461,118.51,118.42,48.02310118]
[1644205584712,12.9148,118.51,118.42,48.02310118]
[1644205585913,12.9148,118.51,118.42,60.68770118]
[1644205586114,12.9148,118.51,118.42,60.43770118]
[1644205586514,0.25,118.51,118.42,60.43770118]
[1644205586915,10.42,118.52,118.42,60.43770118]
[1644205587517,10.42,118.52,118.42,66.68770118]
[1644205587916,12.6611,118.55,118.43,2.16357196]
[1644205588118,47.9791,118.57,118.46,12.659]
[1644205588315,10.17,118.58,118.46,12.909]
[1644205588515,44.12532252,118.57,118.47,37.11861275]
[1644205588716,44.12532252,118.57,118.47,37.36861275]
[1644205588918,44.12532252,118.57,118.47,94.53861275]
[1644205589323,44.12532252,118.57,118.47,96.70218471]
[1644205589518,44.12532252,118.57,118.48,12.6576]
[1644205589718,18.657,118.58,118.48,12.9076]
[1644205590020,12.657,118.58,118.48,18.9076]
[1644205590220,12.657,118.58,118.48,21.07117196]
[1644205590419,12.6635,118.51,118.44,4.218]
[1644205590619,10.17,118.54,118.41,4.219]
[1644205590818,10.17,118.54,118.43,12.6632]
[1644205591219,10.42,118.54,118.43,12.6632]
[1644205591419,51.37546,118.57,118.44,98.53618709]
[1644205591618,57.37546,118.57,118.44,98.53618709]
[1644205591819,12.6598,118.55,118.44,98.78618709]
[1644205592018,12.6598,118.55,118.45,12.6596]
[1644205592221,18.6598,118.55,118.46,43.15986439]
[1644205592619,18.6598,118.55,118.46,49.40986439]
[1644205592821,12.6598,118.55,118.46,49.40986439]
[1644205593019,22.8274,118.57,118.46,113.23866439]
[1644205593218,24.49288182,118.6,118.46,113.23866439]
[1644205593219,77.33041273,118.6,118.46,113.23866439]
[1644205593418,52.83753091,118.6,118.46,113.23866439]
[1644205593618,53.08753091,118.6,118.46,123.40866439]
[1644205594020,52.83753091,118.6,118.46,123.40866439]
[1644205594420,52.83753091,118.6,118.47,4.218]
[1644205594619,12.6556,118.59,118.5,63.8239]
[1644205594820,52.83753091,118.6,118.51,38.5796826]
[1644205595221,52.58753091,118.6,118.51,38.8296826]
[1644205596219,12.9034,118.6,118.51,38.8296826]
[1644205596622,12.9034,118.6,118.51,38.5796826]
[1644205596819,12.9034,118.6,118.51,44.8296826]
[1644205597019,12.9034,118.6,118.51,44.5796826]
[1644205597220,40.17310079,118.59,118.51,44.5796826]
[1644205597420,12.6571,118.57,118.51,6.0]
[1644205597623,12.6571,118.57,118.47,54.6399]
[1644205597920,12.9071,118.57,118.47,54.6399]
[1644205598321,12.9071,118.57,118.47,54.8899]
[1644205598523,30.07189093,118.57,118.48,43.93942922]
[1644205598721,30.07189093,118.57,118.48,50.18942922]
[1644205598922,12.6571,118.57,118.48,62.84652922]
[1644205599721,12.6571,118.57,118.48,62.59652922]
[1644205600122,12.6554,118.59,118.48,113.76652922]
[1644205600321,10.17,118.61,118.48,117.98452922]
[1644205600723,10.42,118.61,118.48,117.98452922]
[1644205601123,39.74655905,118.6,118.48,118.23452922]
[1644205601425,39.99655905,118.6,118.48,118.23452922]
[1644205601723,39.74655905,118.6,118.48,67.06452922]
[1644205601929,49.91655905,118.6,118.48,67.06452922]
[1644205602123,57.11704087,118.6,118.48,54.40742922]
[1644205602324,57.11704087,118.6,118.48,50.18942922]
[1644205602724,64.02064087,118.6,118.48,101.35942922]
[1644205602924,62.82015905,118.6,118.48,101.35942922]
[1644205603924,62.82015905,118.6,118.48,113.76572922]
[1644205604126,64.02064087,118.6,118.48,113.76572922]
[1644205604527,63.77064087,118.6,118.48,113.76572922]
[1644205605829,64.02064087,118.6,118.48,113.76572922]
[1644205606228,1.20048182,118.59,118.48,43.93942922]
[1644205606428,12.6587,118.56,118.44,79.7083]
[1644205606628,10.17,118.55,118.44,30.3203]
[1644205606827,10.42,118.55,118.44,6.0]
[1644205607029,18.58357196,118.55,118.44,6.0]
[1644205607229,19.78405378,118.55,118.4,6.0]
[1644205607529,41.91013101,118.54,118.41,47.26070689]
[1644205607729,10.17,118.53,118.41,47.26070689]
[1644205607928,30.25423267,118.52,118.41,53.26070689]
[1644205608130,10.17,118.51,118.41,6.0]
[1644205608333,10.42,118.51,118.41,6.0]
[1644205608529,10.42,118.51,118.38,30.6248]
[1644205608530,12.58357196,118.51,118.38,30.6248]
[1644205608731,18.58357196,118.51,118.38,6.0]
[1644205609032,12.6681,118.48,118.38,6.0]
[1644205609232,48.10934522,118.47,118.38,42.07176819]
[1644205609632,48.35934522,118.47,118.38,48.07176819]
[1644205610032,12.6698,118.45,118.38,6.0]
[1644205610331,12.9198,118.45,118.33,6.0]
[1644205610633,12.9198,118.45,118.32,16.17]
[1644205611032,12.6734,118.42,118.33,36.16446146]
[1644205611232,50.86274522,118.42,118.33,36.41446146]
[1644205611433,50.61274522,118.42,118.33,42.41446146]
[1644205611630,42.2447,118.45,118.33,93.58446146]
[1644205611835,42.4947,118.45,118.33,93.58446146]
[1644205612031,12.6715,118.44,118.33,106.25686146]
[1644205612232,12.9215,118.44,118.33,106.25686146]
[1644205612630,12.6715,118.44,118.33,106.25686146]
[1644205612831,12.9215,118.44,118.33,106.25686146]
[1644205613033,12.6715,118.44,118.33,106.25686146]
[1644205613232,0.25,118.44,118.33,106.25686146]
[1644205613438,46.41985905,118.45,118.33,106.25686146]
[1644205613633,0.25,118.45,118.33,106.25686146]
[1644205614033,16.17,118.47,118.33,106.25686146]
[1644205614233,10.17,118.47,118.37,63.8376]
[1644205614435,10.17,118.47,118.37,69.8376]
[1644205614633,36.35713738,118.46,118.38,42.86277432]
[1644205614833,10.17,118.48,118.38,43.11277432]
[1644205615035,10.17,118.48,118.38,49.11277432]
[1644205615553,12.6674,118.47,118.38,61.78047432]
[1644205615754,55.56652232,118.47,118.38,61.78047432]
[1644205616454,55.56652232,118.47,118.38,61.53047432]
[1644205616854,12.9174,118.47,118.38,61.53047432]
[1644205618060,12.9174,118.47,118.38,61.78047432]
[1644205618562,12.9174,118.47,118.38,112.95047432]
[1644205618759,0.25,118.47,118.38,112.95047432]
[1644205619160,12.916,118.49,118.38,112.95047432]
[1644205619761,57.0535025,118.49,118.38,112.95047432]
[1644205620163,57.0535025,118.49,118.38,112.70047432]
[1644205620364,57.0535025,118.49,118.38,112.95047432]
[1644205620766,67.2235025,118.49,118.38,112.95047432]
[1644205620965,67.2235025,118.49,118.38,112.70047432]
[1644205621168,23.086,118.49,118.38,112.70047432]
[1644205621367,0.25,118.49,118.38,112.70047432]
[1644205621566,33.288,118.51,118.38,112.70047432]
[1644205622170,34.55487255,118.5,118.38,112.70047432]
[1644205622368,34.55487255,118.5,118.38,112.95047432]
[1644205623069,47.21937255,118.5,118.38,112.95047432]
[1644205623471,34.55487255,118.5,118.38,112.95047432]
[1644205623675,34.55487255,118.5,118.38,123.12047432]
[1644205625272,34.55487255,118.5,118.4,45.01171313]
[1644205625476,76.7257,118.54,118.42,63.8321]
[1644205625672,76.7257,118.54,118.42,69.8321]
[1644205625872,76.7257,118.54,118.42,70.0821]
[1644205626072,47.1762,118.54,118.42,70.0821]
[1644205626281,12.6609,118.54,118.42,70.0821]
[1644205626473,47.2184863,118.54,118.43,36.64428796]
[1644205626674,47.2184863,118.54,118.43,93.81428796]
[1644205626875,47.2184863,118.54,118.47,38.82144693]
[1644205627075,12.6609,118.54,118.47,44.82144693]
[1644205627978,42.48950991,118.54,118.47,108.65034693]
[1644205628277,1.20048182,118.58,118.47,108.90034693]
[1644205628478,24.55898182,118.59,118.47,108.90034693]
[1644205628880,23.3585,118.59,118.47,108.90034693]
[1644205629078,48.55199676,118.58,118.47,108.90034693]
[1644205631181,48.80199676,118.58,118.47,112.86834693]
[1644205631387,48.80199676,118.58,118.47,57.48034693]
[1644205631580,54.80199676,118.58,118.47,57.48034693]
[1644205631781,48.80199676,118.58,118.47,57.48034693]
[1644205633081,61.45759676,118.58,118.47,57.73034693]
[1644205633481,61.20759676,118.58,118.47,108.90034693]
[1644205634303,61.45759676,118.58,118.47,108.90034693]
[1644205636282,61.20759676,118.58,118.47,108.90034693]
[1644205636485,61.45759676,118.58,118.47,108.90034693]
[1644205636684,61.20759676,118.58,118.47,108.90034693]
[1644205636884,61.45759676,118.58,118.47,108.90034693]
[1644205637886,61.45759676,118.58,118.47,57.73034693]
[1644205638089,61.45759676,118.58,118.43,14.388]
[1644205638090,10.17,118.57,118.43,14.388]
[1644205638285,12.6634,118.53,118.43,4.468]
[1644205638685,12.9134,118.53,118.43,4.468]
[1644205639089,21.69929496,118.53,118.44,43.41511929]
[1644205639286,21.69929496,118.53,118.44,43.66511929]
[1644205639687,21.69929496,118.53,118.44,43.41511929]
[1644205640086,31.86929496,118.53,118.41,24.4277]
[1644205640288,31.86929496,118.53,118.43,0.25]
[1644205640888,31.86929496,118.53,118.41,24.4277]
[1644205641489,37.86929496,118.53,118.42,35.12578852]
[1644205642389,37.86929496,118.53,118.42,35.37578852]
[1644205642889,39.06977678,118.53,118.42,34.87578852]
[1644205643291,37.86929496,118.53,118.42,34.87578852]
[1644205643889,39.06977678,118.53,118.42,34.87578852]
[1644205645090,39.06977678,118.53,118.42,34.62578852]
[1644205645291,39.06977678,118.53,118.42,34.87578852]
[1644205645492,37.61929496,118.53,118.42,34.62578852]
[1644205645691,37.61929496,118.53,118.41,24.4277]
[1644205645892,37.61929496,118.53,118.41,6.0]
[1644205646093,40.98334874,118.53,118.38,57.17]
[1644205646294,12.6677,118.48,118.39,12.667]
[1644205646696,45.90270152,118.47,118.39,62.32205451]
[1644205646894,46.15270152,118.47,118.39,6.0]
[1644205647095,46.15270152,118.47,118.37,6.0]
[1644205647296,56.32270152,118.47,118.35,6.0]
[1644205647995,74.99200152,118.47,118.35,12.6713]
[1644205648194,74.99200152,118.47,118.36,41.40004113]
[1644205648595,74.99200152,118.47,118.36,47.65004113]
[1644205648795,74.99200152,118.47,118.36,98.82004113]
[1644205649419,6.0,118.47,118.36,111.49094113]
[1644205649619,28.8372,118.49,118.36,115.71294113]
[1644205649818,23.0872,118.49,118.36,164.33594113]
[1644205650019,22.8372,118.49,118.36,164.33594113]
[1644205650219,23.0872,118.49,118.36,164.33594113]
[1644205650419,22.8372,118.49,118.36,164.33594113]
[1644205650621,10.17,118.49,118.36,164.33594113]
[1644205650919,34.3178,118.51,118.36,176.66951309]
[1644205651120,24.1478,118.51,118.36,176.66951309]
[1644205651319,24.1478,118.51,118.36,184.98400922]
[1644205651921,24.1478,118.51,118.41,12.6631]
[1644205652121,24.1478,118.51,118.42,47.76027059]
[1644205652320,24.1478,118.51,118.42,48.01027059]
[1644205652520,24.1478,118.51,118.42,105.18027059]
[1644205652721,10.17,118.52,118.42,105.18027059]
[1644205652920,22.9055,118.53,118.42,105.18027059]
[1644205653121,36.78903502,118.52,118.44,46.34794021]
[1644205653321,36.78903502,118.52,118.44,46.59794021]
[1644205653521,42.78903502,118.52,118.44,46.59794021]
[1644205653722,6.0,118.52,118.44,46.59794021]
[1644205654122,90.3343,118.54,118.44,59.26044021]
[1644205654323,16.17,118.54,118.44,59.26044021]
[1644205654821,42.78638562,118.53,118.44,59.26044021]
[1644205655022,42.78638562,118.53,118.44,65.26044021]
[1644205655221,49.03638562,118.53,118.44,65.26044021]
[1644205656426,61.20638562,118.53,118.44,65.26044021]
[1644205656929,60.95638562,118.53,118.44,59.26044021]
[1644205657926,54.95638562,118.53,118.44,59.26044021]
[1644205658128,55.20638562,118.53,118.44,59.01044021]
[1644205659129,61.20638562,118.53,118.44,59.01044021]
[1644205659328,55.20638562,118.53,118.44,59.01044021]
[1644205659829,55.20638562,118.53,118.44,59.26044021]
[1644205660029,55.20638562,118.53,118.44,12.6625]
[1644205660230,2.16357196,118.52,118.38,64.0931]
[1644205660431,12.17,118.51,118.41,6.0]
[1644205660631,12.17,118.51,118.38,70.0931]
[1644205660829,12.42,118.51,118.38,70.0931]
[1644205661029,15.0515061,118.5,118.39,42.14822544]
[1644205661231,27.4715061,118.5,118.39,48.39822544]
[1644205661532,27.4715061,118.5,118.41,47.35053771]
[1644205662029,27.4715061,118.5,118.41,53.35053771]
[1644205663231,48.88408182,118.52,118.41,66.26623771]
[1644205663430,59.8536,118.52,118.41,66.26623771]
[1644205664131,42.68592596,118.51,118.41,66.26623771]
[1644205665130,42.93592596,118.51,118.41,18.6657]
[1644205665332,12.17,118.5,118.41,6.0]
[1644205665631,24.8356,118.5,118.39,29.2793]
[1644205665833,26.28608182,118.5,118.39,29.2793]
[1644205666232,15.15196576,118.49,118.39,29.2793]
[1644205666432,27.32196576,118.49,118.36,4.221]
[1644205666633,27.32196576,118.49,118.36,10.221]
[1644205666634,12.6685,118.47,118.36,10.221]
[1644205666832,12.17,118.46,118.34,6.0]
[1644205667032,12.17,118.46,118.33,29.8943]
[1644205667237,18.42,118.46,118.33,29.8943]
[1644205667432,37.86462205,118.45,118.34,40.03098366]
[1644205667733,50.28462205,118.45,118.34,40.03098366]
[1644205667932,12.6727,118.43,118.35,12.6716]
[1644205668332,32.89596967,118.43,118.36,40.32863211]
[1644205668734,32.89596967,118.43,118.35,12.6716]
[1644205668933,32.89596967,118.43,118.35,18.9216]
[1644205669133,32.89596967,118.43,118.35,18.6716]
[1644205669533,32.89596967,118.43,118.35,6.0]
[1644205669736,32.89596967,118.43,118.34,34.68856468]
[1644205669934,32.89596967,118.43,118.34,85.85856468]
[1644205669935,12.6727,118.43,118.34,85.85856468]
[1644205670136,56.83978182,118.46,118.34,85.85856468]
[1644205670137,12.6708,118.45,118.34,40.68856468]
[1644205670336,0.25,118.43,118.34,40.68856468]
[1644205671036,0.25,118.43,118.34,53.61206468]
[1644205671239,47.64815541,118.44,118.34,53.61206468]
[1644205671435,18.6714,118.45,118.34,53.61206468]